Cogmind - Beta 16 @@@ ROGUE MODE // 2026.02.07 @ 12:02:37 Player: beans Result: Destroyed by S-27 Virus with Autogun Performance ------------- Evolutions (4) 2000 Regions Visited (15) 3000 Robots Destroyed (95) 475 Value Destroyed (3622) 3622 Prototype IDs (6) 120 Alien Tech Used (0) 0 Bonus (3490) 3490 TOTAL SCORE: 12707 Bonus ------- High Alert Combat Kills 625 Follower Combat Kills 1324 Entered Garrisons 600 Used RIF Installer 1000 Friendly Fire -59 Cogmind --------- Core Integrity 0/850 Matter 280/300 Energy 17/100 System Corruption 4% Temperature Cool (0) Movement Core (100) Ox1 Location -6/Garrison Parts ------- > --- POWER (1) -------- (None) > --- PROPULSION (4) --- (None) > --- UTILITY (6) ------ Drone Bay (2/2) > --- WEAPON (4) ------- (None) > --- INVENTORY (5) ---- Light Angular Momentum Engine Advanced Coolant Injector Authchip [Weapon] Peak State ------------ > --- POWER ------------ Reinforced Fission Core > --- PROPULSION ------- Heavy Treads Heavy Treads > --- UTILITY ---------- Advanced Cooling System Advanced Cooling System Core Analyzer Hardened Heavy Armor Plating > --- WEAPON ----------- Heavy Mass Driver Heavy Mass Driver > --- INVENTORY -------- Advanced Coolant Injector Authchip [Weapon] Drone Bay Heavy Plasma Cannon Railgun [Rating: 80] Favorites ----------- Power Improved Deuterium Engine Engine Improved Deuterium Engine Power Core Reinforced Fission Core Propulsion Improved Heavy Treads Treads Improved Heavy Treads Leg Improved VSS Leg Wheel Wheel Hover Unit Backup Propulsion III Flight Unit Improved Flight Unit Utility Core Analyzer Device Advanced Cooling System Processor Core Analyzer Protection Medium Reactive Plating Weapon Heavy Battle Rifle Energy Gun Lightning Gun Energy Cannon Heavy Plasma Cannon Ballistic Gun Heavy Battle Rifle Ballistic Cannon Heavy Mass Driver Launcher EMP Blaster Build | -11 -10 -9 -9 -9 -8 -8 -7 -7 -7 -7 -7 -6 -6 -6 -6 ------- Run | Yrd Mat Mat Min Exi Min Mat Fac Was Fac Sto Gar Fac Gar Fac Gar Slots Evolved 8 | . . 2 . . . 2 2 . . . . 2 . . . Power . | . . . . . . . . . . . . . . . . Propulsion 2 | . . . . . . . 2 . . . . . . . . Utility 4 | . . 1 . . . 2 . . . . . 1 . . . Weapon 2 | . . 1 . . . . . . . . . 1 . . . Parts Attached 90 | 5 . 10 1 . . 10 5 16 4 2 9 2 24 . 2 Power 13 | 1 . . . . . 1 . 2 . . 4 . 5 . . Engine 9 | 1 . . . . . 1 . 1 . . 3 . 3 . . Core 4 | . . . . . . . . 1 . . 1 . 2 . . Reactor . | . . . . . . . . . . . . . . . . Propulsion 24 | 2 . 4 . . . . 3 5 . . 2 . 8 . . Treads 6 | . . 2 . . . . . . . . 2 . 2 . . Leg 8 | 2 . . . . . . . 3 . . . . 3 . . Wheel 3 | . . . . . . . 3 . . . . . . . . Hover . | . . . . . . . . . . . . . . . . Flight 7 | . . 2 . . . . . 2 . . . . 3 . . Utility 21 | . . 2 . . . 5 . 1 3 2 2 . 5 . 1 Device 12 | . . 1 . . . 2 . 1 1 1 1 . 4 . 1 Storage . | . . . . . . . . . . . . . . . . Processor 5 | . . 1 . . . 1 . . 1 1 1 . . . . Hackware . | . . . . . . . . . . . . . . . . Protection 4 | . . . . . . 2 . . 1 . . . 1 . . Artifact . | . . . . . . . . . . . . . . . . Weapon 32 | 2 . 4 1 . . 4 2 8 1 . 1 2 6 . 1 Energy Gun 11 | . . 1 . . . 2 . 4 . . . 2 1 . 1 Energy Cannon 4 | . . 1 . . . . 2 . . . . . 1 . . Ballistic Gun 10 | 2 . 1 . . . 1 . 3 1 . 1 . 1 . . Ballistic Cannon 4 | . . . . . . . . 1 . . . . 3 . . Launcher 3 | . . 1 1 . . 1 . . . . . . . . . Special Weapon . | . . . . . . . . . . . . . . . . Impact Weapon . | . . . . . . . . . . . . . . . . Slashing Weapon . | . . . . . . . . . . . . . . . . Piercing Weapon . | . . . . . . . . . . . . . . . . Special Melee Weapon . | . . . . . . . . . . . . . . . . Unidentified Prototypes 6 | . . 2 . . . 1 1 1 . . 1 . . . . Parts Lost 55 | . . 7 . 2 . . 4 7 1 . 5 3 17 . 9 Power 8 | . . 1 . . . . 1 1 1 . 2 . 1 . 1 Propulsion 11 | . . 1 . . . . 1 . . . . . 6 . 3 Utility 13 | . . 1 . . . . . 2 . . 2 1 6 . 1 Weapon 23 | . . 4 . 2 . . 2 4 . . 1 2 4 . 4 Highest Loss Streak 9 | . . 4 . 2 . . 4 6 1 . 2 3 6 . 9 To Critical Strikes . | . . . . . . . . . . . . . . . . Average Backups 4 | . . 3 4 4 4 3 5 3 5 5 4 4 4 5 4 Power . | . . . . . . . . . . . . . . . . Propulsion . | . . . . . . . . . 1 . . . . . . Utility 3 | . . 2 3 3 3 2 2 2 3 3 4 4 3 3 3 Weapon 1 | . . . 1 1 1 1 3 1 1 1 . . 1 2 1 Tool/Special . | . . . . . . . . . . . . . . . . Unused Backups 8 | . . . . . . 3 . 1 . . . . 3 . 1 Power . | . . . . . . . . . . . . . . . . Propulsion 4 | . . . . . . 3 . . . . . . 1 . . Utility 4 | . . . . . . . . 1 . . . . 2 . 1 Weapon . | . . . . . . . . . . . . . . . . Tool/Special . | . . . . . . . . . . . . . . . . Average Slot Usage (%) 61 | . 71 74 55 49 33 74 82 58 88 92 76 59 41 46 42 Engine 5 | . 14 7 . . . 8 6 3 6 7 6 6 2 6 5 Treads 6 | . . 19 . . . . . . . . 13 13 4 . . Leg 6 | . 28 1 . . . . . 8 23 23 1 . 6 20 18 Flight 2 | . . . 22 22 22 18 7 2 . . . . . . . Device 7 | . . 5 . . . 6 15 5 7 7 7 6 7 6 6 Processor 6 | . . 10 11 11 11 17 15 4 4 7 9 13 2 . . Protection 6 | . . . . . . 6 7 8 23 23 13 3 1 . . Energy Gun 2 | . . . . . . 11 20 5 . . . 2 1 . . Ballistic Gun 11 | . 28 24 . . . 6 . 11 23 23 22 13 2 . . Ballistic Cannon 2 | . . . . . . . . . . . . . 5 13 11 Peak Build Rating 80 | 5 5 17 14 14 9 35 39 44 49 46 67 59 80 52 52 Average Rating 44 | 3 5 14 14 12 9 27 33 26 46 44 60 54 46 52 47 On Entrance 29 | . 5 5 13 14 9 9 34 23 44 44 46 59 56 52 52 Avg Prop Armor Cover (%) 9 | . . 22 . . . . . 2 . . 9 . . . 18 Naked Turns 98 | . . . . . . . . 95 . . . . . . 3 Heaviest Build 85 | 9 9 14 8 8 . 58 42 54 58 42 48 28 85 51 51 Greatest Support 150 | 20 20 44 10 10 10 10 30 45 45 45 150 150 150 45 45 Greatest Overweight (x) 7 | . . . . . . 5 4 2 1 . 1 . 7 1 2 Average Overweight (x) . | . . . . . . 2 2 . . . . . . 1 . Largest Inventory Capacity 5 | 5 5 5 5 5 5 5 5 5 5 5 5 5 5 5 5 Average Capacity 5 | 5 5 5 5 5 5 5 5 5 5 5 5 5 5 5 5 Most Carried 5 | 4 1 5 4 4 4 5 5 5 5 5 5 5 5 5 5 Average Carried 4 | . . 3 4 4 4 3 5 3 5 4 4 4 4 5 4 Final Capacity 5 | 5 5 5 5 5 5 5 5 5 5 5 5 5 5 5 5 Final Carried 5 | . 1 5 4 4 4 5 5 5 5 5 4 4 5 5 3 Class Distribution -------------------- 19% | Tank 18% | Mutant 16% | Scavenger-Gunner 14% | Commander-Tank 12% | Gunner 9% | Scavenger-Mutant 4% | Scavenger-Tank Dominant Class ---------------- Mutant | -10/Materials Gunner | -9/Materials Mutant | -9/Mines Mutant | -9/Exiles Mutant | -8/Mines Gunner | -8/Materials Gunner | -7/Factory Tank | -7/Waste Tank | -7/Factory Tank | -7/Storage Commander-Tank | -7/Garrison Commander-Tank | -6/Factory Scavenger-Gunner | -6/Garrison Scavenger-Gunner | -6/Factory Scavenger-Gunner | -6/Garrison Resources | -11 -10 -9 -9 -9 -8 -8 -7 -7 -7 -7 -7 -6 -6 -6 -6 ----------- Run | Yrd Mat Mat Min Exi Min Mat Fac Was Fac Sto Gar Fac Gar Fac Gar Matter Collected 4199 | 250 66 295 50 4 . 173 244 224 299 64 932 63 1448 . 87 Remotely . | . . . . . . . . . . . . . . . . Salvage Created 4901 | 28 103 591 . . . 238 361 299 522 148 1737 59 703 . 112 Parts 222 | 1 8 46 . . . 15 17 . 22 7 80 4 16 . 6 Haulers Intercepted 2 | . . 1 . . . . . . 1 . . . . . . Recyclers Shooed 3 | . . 1 . . . 2 . . . . . . . . . Parts Field Recycled . | . . . . . . . . . . . . . . . . Retrieved Matter . | . . . . . . . . . . . . . . . . Parts Self-Destructed . | . . . . . . . . . . . . . . . . Prevented . | . . . . . . . . . . . . . . . . Parts Restored . | . . . . . . . . . . . . . . . . Kills | -11 -10 -9 -9 -9 -8 -8 -7 -7 -7 -7 -7 -6 -6 -6 -6 ------- Run | Yrd Mat Mat Min Exi Min Mat Fac Was Fac Sto Gar Fac Gar Fac Gar Combat Hostiles Destroyed 95 | . 2 12 . . . 7 . 1 7 2 24 1 37 . 2 Guns 68 | . 2 12 . . . 6 . 1 7 2 24 1 13 . . Cannons 26 | . . . . . . . . . . . . . 24 . 2 AOE 1 | . . . . . . 1 . . . . . . . . . Classes Destroyed 16 | 1 2 6 . . . . 1 1 . . 3 . 2 . . Worker 11 | . . 3 . . . . 6 . 1 1 . . . . . Builder 9 | . 1 5 . . . 2 1 . . . . . . . . Tunneler 1 | 1 . . . . . . . . . . . . . . . Hauler 2 | . . 1 . . . . . . 1 . . . . . . Recycler 3 | . . . . . . . 2 . 1 . . . . . . Operator 2 | . . 1 . . . . . . 1 . . . . . . Watcher 2 | . . 1 . . . . 1 . . . . . . . . Swarmer 13 | . . 3 . . . 3 . . . . 6 . 1 . . Grunt 30 | . 2 8 . . . 3 . . 5 . 8 . 2 . 2 Brawler 1 | . . . . . . . . . . . 1 . . . . Duelist 2 | . . . . . . . . . . . 2 . . . . Sentry 15 | . . 1 . . . 1 . . 2 2 6 1 2 . . Demolisher 1 | . . . . . . . . . . . . . 1 . . Hunter 2 | . . . . . . . . . . . 1 . 1 . . Compactor 1 | . . . . . . . . 1 . . . . . . . Assembled 30 | . . . . . . . . . . . . . 30 . . Best Kill Streak 18 | 1 3 11 . . . 5 2 1 5 2 5 1 18 . 2 Combat Bots Only 18 | . 2 4 . . . 4 . 1 2 2 5 1 18 . 2 Max Kills in Single Turn 6 | 1 1 6 . . . 1 1 1 1 1 2 1 2 . 1 Gunslinging 1 | . . 1 . . . . . . . . 1 . . . . Exploded 1 | . . . . . . 1 . . . . . . . . . Melee . | . . . . . . . . . . . . . . . . Uniques/NPCs Destroyed . | . . . . . . . . . . . . . . . . Combat | -11 -10 -9 -9 -9 -8 -8 -7 -7 -7 -7 -7 -6 -6 -6 -6 -------- Run | Yrd Mat Mat Min Exi Min Mat Fac Was Fac Sto Gar Fac Gar Fac Gar Hostile Shots Fired 874 | . 13 97 . 7 . 33 22 10 96 45 144 36 308 . 63 Missed 265 | . 4 37 . 1 . 8 4 . 28 23 50 17 77 . 16 Hits 609 | . 9 60 . 6 . 25 18 10 68 22 94 19 231 . 47 Melee 47 | . . . . . . . 6 10 . . 9 . 22 . . Projectile 562 | . 9 60 . 6 . 25 12 . 68 22 85 19 209 . 47 AOE 9 | . . . . . . . . . . . . . 9 . . Critical Strikes 22 | . . 1 . . . 1 3 5 2 . 6 . 4 . . Part Disruptions 5 | . . . . . . . . . . . . . 5 . . Damage Taken 9608 | . 100 1156 . 257 . 335 410 431 663 129 1237 324 3834 . 732 Core 2075 | . 35 308 . 76 . 125 72 386 80 23 105 45 645 . 175 Absorbed by Shields 111 | . . . . . . . . . 111 . . . . . . Reduced by Siege Mode 61 | . . . . . . . . . . . . . 61 . . Ignored by Resistances 253 | . . . . . . 15 . . 44 30 164 . . . . Regen/Repaired (Parts) 549 | . . . . . . . . 29 319 48 153 . . . . Core Remaining (%) 54 | 100 86 . . . 4 77 . . . . 4 . . . . Volleys Fired 412 | 1 10 57 . 1 . 26 20 13 26 6 89 9 143 1 10 Largest 3 | 2 2 3 . 1 . 3 3 3 3 3 3 3 3 2 2 Hottest 225 | 40 40 108 . 33 . 135 175 225 99 99 99 102 190 130 130 Shots Fired 913 | 2 20 129 . 2 . 36 58 33 78 18 255 22 245 2 13 Gun 779 | 2 20 127 . . . 36 58 33 78 18 255 22 124 . 6 Cannon 130 | . . . . . . . . . . . . . 121 2 7 Launcher 4 | . . 2 . 2 . . . . . . . . . . . Special . | . . . . . . . . . . . . . . . . Kinetic 719 | 2 20 125 . . . 26 . 18 78 18 255 19 147 2 9 Thermal 125 | . . 2 . . . . 19 3 . . . 3 98 . . Explosive . | . . . . . . . . . . . . . . . . Electromagnetic 69 | . . 2 . 2 . 10 39 12 . . . . . . 4 Robot Hit Streak 17 | 1 5 9 . 4 . 7 7 6 7 7 17 2 13 . 4 Robot Miss Streak 9 | . 2 9 . . . 5 3 2 9 3 5 4 7 . 4 Penetration Max 1 | . . . . . . . . . . . . . 1 . . Secondary Targets 10 | . 1 2 . . . . . . 1 . 4 . 2 . . Max Gunslinging Chain 1 | . 1 1 . . . . . . 1 . 1 . 1 . . Shots Hit Robots 473 | 1 13 73 . 2 . 26 25 20 36 11 162 10 91 . 3 Core Hits 227 | 1 5 31 . 1 . 16 13 4 19 6 74 4 51 . 2 Critical Kills 5 | . . . . . . 2 . . 1 . 1 . 1 . . Critical Parts Destroyed 3 | . . 1 . . . 1 . . 1 . . . . . . Critical Strikes 17 | . . 2 . . . 3 6 . 2 . 1 . 3 . . Burn 2 | . . . . . . . 2 . . . . . . . . Destroy 9 | . . 2 . . . 3 . . 2 . 1 . 1 . . Blast 2 | . . . . . . . . . . . . . 2 . . Corrupt 4 | . . . . . . . 4 . . . . . . . . Melee Attacks . | . . . . . . . . . . . . . . . . Impact . | . . . . . . . . . . . . . . . . Slashing . | . . . . . . . . . . . . . . . . Piercing . | . . . . . . . . . . . . . . . . Sneak Attacks . | . . . . . . . . . . . . . . . . Combat Hostiles . | . . . . . . . . . . . . . . . . Follow-up Attacks . | . . . . . . . . . . . . . . . . Damage Inflicted 11803 | 11 161 1776 . 11 . 486 538 287 857 261 3435 226 3532 . 222 Guns 8724 | 11 161 1100 . . . 459 538 287 857 261 3435 226 1377 . 12 Cannons 2365 | . . . . . . . . . . . . . 2155 . 210 Explosions 714 | . . 676 . 11 . 27 . . . . . . . . . Melee . | . . . . . . . . . . . . . . . . Ramming . | . . . . . . . . . . . . . . . . Kinetic 9337 | 11 161 1086 . . . 388 . 276 857 261 3435 208 2444 . 210 Thermal 1914 | . . 616 . . . 27 165 . . . . 18 1088 . . Explosive . | . . . . . . . . . . . . . . . . Electromagnetic 552 | . . 74 . 11 . 71 373 11 . . . . . . 12 Impact . | . . . . . . . . . . . . . . . . Slashing . | . . . . . . . . . . . . . . . . Piercing . | . . . . . . . . . . . . . . . . Highest Corruption 6 | . . 6 6 6 6 2 . . . . 3 . 4 4 4 Average Corruption 3 | . . 6 6 6 6 2 . . . . 3 . 3 4 4 Corruption Purged . | . . . . . . . . . . . . . . . . Corruption Blocked . | . . . . . . . . . . . . . . . . Effects 91 | . . . 1 3 . 3 . . . . 25 . 52 1 6 Message Errors 23 | . . . . 2 . 1 . . . . 6 . 12 . 2 Matter Fused 20 | . . . . . . 1 . . . . 6 . 12 . 1 Heat Flow Errors 14 | . . . . . . 1 . . . . 5 . 8 . . Energy Discharges 13 | . . . . . . . . . . . 3 . 8 . 2 Parts Rejected 1 | . . . . . . . . . . . 1 . . . . Data Loss (minor) 8 | . . . . . . . . . . . 1 . 6 . 1 Data Loss (major) 5 | . . . 1 . . . . . . . 1 . 2 1 . Misfires 3 | . . . . 1 . . . . . . 1 . 1 . . Alerts 2 | . . . . . . . . . . . 1 . 1 . . Weapon Failures 2 | . . . . . . . . . . . . . 2 . . Overload Shots 2 | . . . . . . . . 2 . . . . . . . Overflow Damage 738 | . . 384 . . . . . . . . . . 354 . . Projectiles 354 | . . . . . . . . . . . . . 354 . . Explosions 384 | . . 384 . . . . . . . . . . . . . Melee . | . . . . . . . . . . . . . . . . Knockbacks 5 | . . . . . . . . . . . . . 5 . . Impact . | . . . . . . . . . . . . . . . . Kinetic 4 | . . . . . . . . . . . . . 4 . . Secondary 1 | . . . . . . . . . . . . . 1 . . Self-Inflicted Damage 156 | . . 156 . . . . . . . . . . . . . Shots 2 | . . 2 . . . . . . . . . . . . . Rammed . | . . . . . . . . . . . . . . . . Targets Rammed . | . . . . . . . . . . . . . . . . Kicked . | . . . . . . . . . . . . . . . . Crushed . | . . . . . . . . . . . . . . . . Highest Temperature 455 | . 5 39 . . . 224 84 156 455 . 245 . 246 . . Average Temperature 91 | . 5 11 . . . 75 27 49 182 . 70 . 60 . . Received Heat Transfer 2242 | . 54 435 . . . 153 144 . 369 42 336 102 589 . 18 Effects 8 | . . . . . . . . . 7 . . . 1 . . Energy Bleed 1 | . . . . . . . . . . . . . 1 . . Interference 2 | . . . . . . . . . 2 . . . . . . Damage (major) 5 | . . . . . . . . . 5 . . . . . . Siege Activations 3 | . . . . . . . . . . . 2 . 1 . . Total Turns 25 | . . . . . . . . . . . 6 . 19 . . Longest Duration 19 | . . . . . . . . . . . 4 . 19 . . Martial Activations . | . . . . . . . . . . . . . . . . Shielding Activations . | . . . . . . . . . . . . . . . . Robots Disrupted . | . . . . . . . . . . . . . . . . Combat Hostiles . | . . . . . . . . . . . . . . . . Robots Corrupted . | . . . . . . . . . . . . . . . . Combat Hostiles . | . . . . . . . . . . . . . . . . Parts Fried . | . . . . . . . . . . . . . . . . Impact Corruptions . | . . . . . . . . . . . . . . . . Robots Melted . | . . . . . . . . . . . . . . . . Combat Hostiles . | . . . . . . . . . . . . . . . . Parts Melted 1 | . . . . . . . 1 . . . . . . . . Heat Transferred 2867 | . . 437 . . . . 555 . . . . 37 1838 . . Parts Sabotaged . | . . . . . . . . . . . . . . . . Parts Stolen . | . . . . . . . . . . . . . . . . Parts Stripped . | . . . . . . . . . . . . . . . . Power Chain Reactions 1 | . . . . . . 1 . . . . . . . . . Alert | -11 -10 -9 -9 -9 -8 -8 -7 -7 -7 -7 -7 -6 -6 -6 -6 ------- Run | Yrd Mat Mat Min Exi Min Mat Fac Was Fac Sto Gar Fac Gar Fac Gar Maximum Alert Level 5 | . . 1 . . . . . . . . 4 4 5 5 4 Low Security (%) 35 | 100 100 67 100 . 100 100 100 100 100 100 21 . . . . Level 1 4 | . . 32 . . . . . . . . 11 . . . . Level 2 5 | . . . . . . . . . . . 19 . . . . Level 3 8 | . . . . . . . . . . . 25 51 1 . . Level 4 21 | . . . . . . . . . . . 22 48 31 . 100 Level 5 25 | . . . . . . . . . . . . . 67 100 . High Security . | . . . . . . . . . . . . . . . . Max Security . | . . . . . . . . . . . . . . . . Peak Influence 3169 | 5 45 291 103 . . 149 24 18 46 60 1495 1465 3169 1665 1255 Initial 1663 | . 3 14 93 . . . 24 . . 16 48 784 1018 1663 1158 Average 1022 | . 6 117 87 . . 90 3 . 15 21 674 1038 2093 1662 1175 Influence Increases 6196 | 5 55 482 30 . . 229 67 40 212 108 1557 841 2461 2 107 Destroy 0b10 Robot/C 2140 | . 40 240 . . . 140 . . 140 40 780 360 360 . 40 Destroy 0b10 Robot/NC 200 | 5 5 55 . . . 10 50 . 20 5 30 10 10 . . Destroy Leader 238 | . 10 44 . . . 30 2 . 32 20 30 70 . . . Allied During Kill 658 | . . . . . . . . . 18 2 235 319 84 . . Successful Hack 38 | . . . . . . . . . . 24 7 . 7 . . Disable Machine 210 | . . 105 . . . . . . . 15 . 75 . . 15 Anti-Garrison Action 2150 | . . . . . . . . . . . 400 . 1700 . 50 Destroy Structure 232 | . . 23 . . . 4 . 40 2 2 15 7 135 2 2 Partial Spotted 30 | . . 15 . . . . . . . . . . 15 . . Lose Combat Pursuer 300 | . . . 30 . . 45 15 . . . 60 . 150 . . Influence Decreases 5021 | . 25 276 168 103 . 175 121 40 175 71 136 881 747 1516 587 Entered New Map 3502 | . 2 21 148 103 . . 30 . . 21 26 711 437 1506 497 Time Decay 824 | . 23 185 20 . . 175 91 20 150 50 . 100 . 10 . Lost Part 417 | . . 70 . . . . . 2 5 . 50 30 170 . 90 Lost Ally 278 | . . . . . . . . 18 20 . 60 40 140 . . Squads Dispatched 10 | . 1 . . . . . . . 2 2 . 5 . . . Investigation 2 | . . . . . . . . . . 1 . 1 . . . Extermination 1 | . . . . . . . . . 1 . . . . . . Reinforcement 4 | . 1 . . . . . . . 1 . . 2 . . . Assault . | . . . . . . . . . . . . . . . . Garrison 3 | . . . . . . . . . . 1 . 2 . . . Intercept . | . . . . . . . . . . . . . . . . Searches Triggered . | . . . . . . . . . . . . . . . . Construction Impeded . | . . . . . . . . . . . . . . . . Haulers Reinforced . | . . . . . . . . . . . . . . . . Active Scanning Responses . | . . . . . . . . . . . . . . . . Cargo Convoy Interrupts . | . . . . . . . . . . . . . . . . Stealth | -11 -10 -9 -9 -9 -8 -8 -7 -7 -7 -7 -7 -6 -6 -6 -6 --------- Run | Yrd Mat Mat Min Exi Min Mat Fac Was Fac Sto Gar Fac Gar Fac Gar Distress Signals 3 | . . 2 . . . 1 . . . . . . . . . Communications Jammed . | . . . . . . . . . . . . . . . . Distress Signals . | . . . . . . . . . . . . . . . . Times Spotted 248 | . 3 22 1 7 . 11 5 6 8 3 40 18 119 . 5 Peak Tracking Total 19 | . 1 4 2 13 . 4 3 6 3 1 6 7 19 . 3 Tactical Retreats 24 | . . . 1 1 . 2 1 . . . 1 . 18 . . Traps | -11 -10 -9 -9 -9 -8 -8 -7 -7 -7 -7 -7 -6 -6 -6 -6 ------- Run | Yrd Mat Mat Min Exi Min Mat Fac Was Fac Sto Gar Fac Gar Fac Gar Traps Triggered 8 | . . 1 . . . . 1 . . . . . 3 . 3 Indirectly . | . . . . . . . . . . . . . . . . Trap Hack Attempts . | . . . . . . . . . . . . . . . . Triggered . | . . . . . . . . . . . . . . . . Disarmed . | . . . . . . . . . . . . . . . . Reprogrammed . | . . . . . . . . . . . . . . . . Reused . | . . . . . . . . . . . . . . . . Traps Extracted . | . . . . . . . . . . . . . . . . Installed . | . . . . . . . . . . . . . . . . Triggered . | . . . . . . . . . . . . . . . . Machines | -11 -10 -9 -9 -9 -8 -8 -7 -7 -7 -7 -7 -6 -6 -6 -6 ---------- Run | Yrd Mat Mat Min Exi Min Mat Fac Was Fac Sto Gar Fac Gar Fac Gar Machines Disabled 23 | . . 7 . 3 . . . . . 1 . 5 5 . 2 Max in Single Turn 6 | . . 6 . 2 . . . . . 1 . . 1 . 1 Garrison Relay 3 | . . . . . . . . . . . . . 2 . 1 Machines Repaired . | . . . . . . . . . . . . . . . . Machines Dismantled . | . . . . . . . . . . . . . . . . Machines Sabotaged . | . . . . . . . . . . . . . . . . Overloaded Fab Kills . | . . . . . . . . . . . . . . . . Hacking | -11 -10 -9 -9 -9 -8 -8 -7 -7 -7 -7 -7 -6 -6 -6 -6 --------- Run | Yrd Mat Mat Min Exi Min Mat Fac Was Fac Sto Gar Fac Gar Fac Gar Machines Accessed 9 | . . 1 . . . . . . . 2 1 1 3 1 . Terminals 5 | . . . . . . . . . . 1 1 . 3 . . Fabricators . | . . . . . . . . . . . . . . . . Repair Stations . | . . . . . . . . . . . . . . . . Recycling Units . | . . . . . . . . . . . . . . . . Scanalyzers 1 | . . 1 . . . . . . . . . . . . . Garrison Access 3 | . . . . . . . . . . 1 . 1 . 1 . Total Hacks 12 | . . 2 . . . . . . . 3 1 2 3 1 . Successful 9 | . . 1 . . . . . . . 2 1 2 2 1 . Failed 2 | . . . . . . . . . . 1 . . 1 . . Catastrophic 1 | . . . . . . . . . . 1 . . . . . Database Lockouts 1 | . . 1 . . . . . . . . . . . . . Manual . | . . . . . . . . . . . . . . . . Terminals 5 | . . . . . . . . . . 1 1 . 3 . . Fabricators . | . . . . . . . . . . . . . . . . Repair Stations . | . . . . . . . . . . . . . . . . Recycling Units . | . . . . . . . . . . . . . . . . Scanalyzers 2 | . . 2 . . . . . . . . . . . . . Garrison Access 5 | . . . . . . . . . . 2 . 2 . 1 . Terminal Hacks 4 | . . . . . . . . . . 1 1 . 2 . . Open Door 3 | . . . . . . . . . . 1 1 . 1 . . Emergency Access Points 1 | . . . . . . . . . . . . . 1 . . Fabricator Hacks . | . . . . . . . . . . . . . . . . Repair Station Hacks . | . . . . . . . . . . . . . . . . Recycling Unit Hacks . | . . . . . . . . . . . . . . . . Scanalyzer 1 | . . 1 . . . . . . . . . . . . . Retrieve Study 1 | . . 1 . . . . . . . . . . . . . Garrison Access Hacks 4 | . . . . . . . . . . 1 . 2 . 1 . Unlock Access 3 | . . . . . . . . . . 1 . 1 . 1 . Coupler Status 1 | . . . . . . . . . . . . 1 . . . Unauthorized Hacks . | . . . . . . . . . . . . . . . . Terminals . | . . . . . . . . . . . . . . . . Fabricators . | . . . . . . . . . . . . . . . . Repair Stations . | . . . . . . . . . . . . . . . . Recycling Units . | . . . . . . . . . . . . . . . . Scanalyzers . | . . . . . . . . . . . . . . . . Garrison Access . | . . . . . . . . . . . . . . . . Data Cores Recovered 1 | . . . . . . . . . . . . 1 . . . Used . | . . . . . . . . . . . . . . . . Hacking Detections 4 | . . 1 . . . . . . . 1 . 1 1 . . Full Trace Events 1 | . . . . . . . . . . 1 . . . . . Feedback Events . | . . . . . . . . . . . . . . . . Feedback Blocked . | . . . . . . . . . . . . . . . . Robot Schematics Acquired . | . . . . . . . . . . . . . . . . Robots Built . | . . . . . . . . . . . . . . . . Authchips . | . . . . . . . . . . . . . . . . Time . | . . . . . . . . . . . . . . . . Total Robot Build Rating . | . . . . . . . . . . . . . . . . Part Schematics Acquired . | . . . . . . . . . . . . . . . . Parts Built . | . . . . . . . . . . . . . . . . Authchips . | . . . . . . . . . . . . . . . . Time . | . . . . . . . . . . . . . . . . Total Part Build Rating . | . . . . . . . . . . . . . . . . Part Studies Acquired 1 | . . 1 . . . . . . . . . . . . . Parts Repaired . | . . . . . . . . . . . . . . . . Time . | . . . . . . . . . . . . . . . . Parts Recycled . | . . . . . . . . . . . . . . . . Recycled Matter . | . . . . . . . . . . . . . . . . Retrieved Matter . | . . . . . . . . . . . . . . . . Retrieved Components . | . . . . . . . . . . . . . . . . Parts Scanalyzed . | . . . . . . . . . . . . . . . . Part Schematics Acquired . | . . . . . . . . . . . . . . . . Parts Damaged . | . . . . . . . . . . . . . . . . Bothacking | -11 -10 -9 -9 -9 -8 -8 -7 -7 -7 -7 -7 -6 -6 -6 -6 ------------ Run | Yrd Mat Mat Min Exi Min Mat Fac Was Fac Sto Gar Fac Gar Fac Gar Used RIF Installer 2 | . . . . . . . . . . . 1 . 1 . . Program Shield 1 | . . . . . . . . . . . . . 1 . . Robots Hacked . | . . . . . . . . . . . . . . . . Non-combat . | . . . . . . . . . . . . . . . . Combat . | . . . . . . . . . . . . . . . . Robot Hacks Applied . | . . . . . . . . . . . . . . . . Relay Couplers Released 14 | . . . . . . . . . . . . . 9 . 5 Machine Destruction 14 | . . . . . . . . . . . . . 9 . 5 Fabnet Peak Effective % . | . . . . . . . . . . . . . . . . Robots Rewired 14 | . . . . . . . . . . . 13 . 1 . . Allies Hacked . | . . . . . . . . . . . . . . . . Hacks Repelled . | . . . . . . . . . . . . . . . . Allies | -11 -10 -9 -9 -9 -8 -8 -7 -7 -7 -7 -7 -6 -6 -6 -6 -------- Run | Yrd Mat Mat Min Exi Min Mat Fac Was Fac Sto Gar Fac Gar Fac Gar Total Allies 36 | . . . . . . . . 19 . . 15 . 2 . . Largest Group 19 | . . . . . . . . 19 3 2 10 10 6 . . Highest-Rated Group 475 | . . . . . . . . 475 86 52 408 408 271 . . Highest-Rated Ally 85 | . . . . . . . . 35 33 27 80 80 85 . . Total Orders . | . . . . . . . . . . . . . . . . Ally Attacks 302 | . . . . . . . . 105 10 . 57 66 64 . . Total Damage 11483 | . . . . . . . . 6085 106 . 1749 1932 1611 . . Kills 75 | . . . . . . . . 15 . . 15 21 24 . . Allies Corrupted 1 | . . . . . . . . . . . . . 1 . . Allies Melted . | . . . . . . . . . . . . . . . . Intel | -11 -10 -9 -9 -9 -8 -8 -7 -7 -7 -7 -7 -6 -6 -6 -6 ------- Run | Yrd Mat Mat Min Exi Min Mat Fac Was Fac Sto Gar Fac Gar Fac Gar Active Infowar (turns) . | . . . . . . . . . . . . . . . . Robot Analysis Total . | . . . . . . . . . . . . . . . . Derelict Logs Recovered . | . . . . . . . . . . . . . . . . Drone Launches . | . . . . . . . . . . . . . . . . Drone Recoveries . | . . . . . . . . . . . . . . . . Exploration | -11 -10 -9 -9 -9 -8 -8 -7 -7 -7 -7 -7 -6 -6 -6 -6 ------------- Run | Yrd Mat Mat Min Exi Min Mat Fac Was Fac Sto Gar Fac Gar Fac Gar Turns Passed 8659 | 54 161 394 42 56 17 394 464 605 439 102 2288 204 3151 24 264 Spaces Moved 4660 | 41 109 156 111 146 40 161 167 510 191 64 1031 101 1692 11 129 Core 488 | 11 . . . . . . . 146 . . . . 318 . 13 Treads 1667 | . . 120 . . . . . . . . 983 101 463 . . Legs 1395 | 30 109 8 . . . . . 167 191 64 48 . 651 11 116 Wheels 265 | . . . . . . . 101 164 . . . . . . . Hover . | . . . . . . . . . . . . . . . . Flight 845 | . . 28 111 146 40 161 66 33 . . . . 260 . . Fastest Speed 32 | 50 120 37 37 37 37 37 95 50 120 120 120 160 32 180 50 Average Speed 136 | 101 120 124 37 37 37 186 178 92 179 120 158 160 139 180 167 Slowest Speed 595 | 120 120 145 37 37 37 387 317 190 190 120 190 160 595 180 180 Overloaded Moves . | . . . . . . . . . . . . . . . . Propulsion Burnouts . | . . . . . . . . . . . . . . . . Robots Hopped . | . . . . . . . . . . . . . . . . Potential Cave-ins . | . . . . . . . . . . . . . . . . Cave-ins Triggered 1 | . . 1 . . . . . . . . . . . . . Exploration Rate (%) 31 | 3 22 21 41 51 24 15 5 96 4 11 72 4 86 . 12 Regions Visited 15 Branch Regions 4 Pre-discovered Areas . | . . . . . . . . . . . . . . . . Known Exits Taken 3 | . . . . . . . . . . 1 . 1 . 1 . Unknown Exits Taken 8 | 1 1 1 1 1 1 1 . . 1 . . . . . . Scrap Searched 1 | . . . 1 . . . . . . . . . . . . Spaces Dug 29 | . . . . . . . . 2 . . . . 25 2 . Terrain Destroyed 111 | . . 19 . . . 3 . 3 2 2 . . 73 2 7 Melee . | . . . . . . . . . . . . . . . . Projectile 89 | . . . . . . . . 3 2 2 . . 73 2 7 AOE 22 | . . 19 . . . 3 . . . . . . . . . Terrain Rammed . | . . . . . . . . . . . . . . . . Walls Destroyed . | . . . . . . . . . . . . . . . . Machines Disabled . | . . . . . . . . . . . . . . . . Actions | -11 -10 -9 -9 -9 -8 -8 -7 -7 -7 -7 -7 -6 -6 -6 -6 --------- Run | Yrd Mat Mat Min Exi Min Mat Fac Was Fac Sto Gar Fac Gar Fac Gar Total 6143 | 51 119 244 111 146 41 223 287 619 229 76 1489 123 2212 12 161 Wait 717 | . . 5 . . 2 11 91 56 4 . 246 10 289 . 3 Move 4648 | 40 108 155 110 145 39 160 167 509 190 64 1029 101 1691 11 129 Hop . | . . . . . . . . . . . . . . . . Pick Up 50 | 5 1 10 . . . 7 . 13 . 1 1 1 10 . 1 Fast Attach 57 | . . 4 . . . 6 5 6 4 2 12 1 17 . . Attach 41 | 5 . 4 1 . . 5 . 11 . . 2 1 9 . 3 Detach 10 | . . . . . . 2 . 2 . . . . 6 . . Swap 11 | . . 4 . . . 1 1 2 1 . . . 2 . . Drop 47 | . . 5 . . . 5 3 7 4 3 8 . 12 . . Fire 412 | 1 10 57 . 1 . 26 20 13 26 6 89 9 143 1 10 Melee . | . . . . . . . . . . . . . . . . Ram . | . . . . . . . . . . . . . . . . Kick . | . . . . . . . . . . . . . . . . Crush . | . . . . . . . . . . . . . . . . Escape Stasis 25 | . . . . . . . . . . . . . 10 . 15 Rewire 125 | . . . . . . . . . . . 102 . 23 . . Trap . | . . . . . . . . . . . . . . . . Miscellaneous . | . . . . . . . . . . . . . . . . Route ------- -11/Scrapyard -10/Materials -9/Materials -9/Mines (discovered 2 exits: [*Mat] / [*Exi]) -9/Exiles -8/Mines -8/Materials -7/Factory (discovered 2 exits: *Sto / [*Low]) -7/Waste -7/Factory -7/Storage -7/Garrison (discovered 3 exits: *Fac x3) -6/Factory -6/Garrison (discovered 3 exits: *Fac x3) -6/Factory -6/Garrison History --------- Turn | Location | Event 6 | -11/Scrapyard | Discovered new exit (range 16) 55 | -11/Scrapyard | Entered Materials 210 | -10/Materials | Discovered new exit (range 5) 216 | -10/Materials | Entered another Materials area 216 | -9/Materials | Evolved 2 slots: Utility x1, Weapon x1 432 | -9/Materials | Central database locked down 588 | -9/Materials | Core integrity fell below 50% 592 | -9/Materials | Crushed by falling debris 605 | -9/Materials | Discovered new exit (range 12) 610 | -9/Materials | Entered Mines 611 | -9/Mines | Assembled infested the area 624 | -9/Mines | Lost 4 parts (1n1u2w) 636 | -9/Mines | Discovered new exit (range 10) 650 | -9/Mines | Deemed a non-threat by the Exiles lab entrance 650 | -9/Mines | Discovered new exit (range 5) 652 | -9/Mines | Entered Exiles 661 | -9/Exiles | Met 8R-AWN 668 | -9/Exiles | Met EX-HEX 676 | -9/Exiles | Attacked by the Exiles 686 | -9/Exiles | Core integrity fell below 20% 701 | -9/Exiles | Discovered new exit (range 14) 708 | -9/Exiles | Entered Mines 717 | -8/Mines | Discovered new exit (range 12) 725 | -8/Mines | Entered Materials 725 | -8/Materials | Evolved 2 slots: Utility x2 886 | -8/Materials | Discovered new exit (range 16) 1119 | -8/Materials | Entered Factory 1119 | -7/Factory | Evolved 2 slots: Propulsion x2 1356 | -7/Factory | Discovered new exit (range 6) 1473 | -7/Factory | Discovered new exit (range 15) 1562 | -7/Factory | Lost 4 parts (1p1n2w) 1583 | -7/Factory | Sucked down chute 1583 | -7/Factory | Entered Waste 1595 | -7/Waste | Spotted C-40 Crusher 1596 | -7/Waste | Spotted C-40 Crusher 1619 | -7/Waste | Spotted C-40 Crusher 1635 | -7/Waste | Spotted C-40 Crusher 1652 | -7/Waste | Spotted C-40 Crusher 1657 | -7/Waste | Spotted C-40 Crusher 1686 | -7/Waste | Crushed by Compactor (1 part destroyed, 2 dropped) 1723 | -7/Waste | Discovered new exit (range 16) 1761 | -7/Waste | Crushed by Compactor (1 part destroyed, 1 dropped) 1765 | -7/Waste | Crushed by Compactor (1 part destroyed, 1 dropped) 1768 | -7/Waste | Crushed by Compactor (1 part destroyed, 2 dropped) 1771 | -7/Waste | Crushed by Compactor (1 part destroyed, 1 dropped) 1777 | -7/Waste | Crushed by Compactor (1 part destroyed) 1781 | -7/Waste | Core integrity fell below 50% 1786 | -7/Waste | Crushed by Compactor (1 part destroyed) 1817 | -7/Waste | Lost 6 parts (2u4w) 1843 | -7/Waste | Warlord forces began an assault 1858 | -7/Waste | Allies destroyed C-40 Crusher 1906 | -7/Waste | Destroyed C-40 Crusher 1934 | -7/Waste | Lost 14 allies 2162 | -7/Waste | Build established: Tank 2188 | -7/Waste | Entered Factory 2188 | -7/Factory | Accompanied by 3 allies 2592 | -7/Factory | Discovered new exit (range 15) 2627 | -7/Factory | Entered Storage 2627 | -7/Storage | Accompanied by 2 allies 2701 | -7/Storage | Core integrity fell below 20% 2704 | -7/Storage | Garrison activated, responded to threat 2729 | -7/Storage | Identified exit to Garrison 2729 | -7/Storage | Entered Garrison 2729 | -7/Garrison | Accompanied by 2 allies 2765 | -7/Garrison | Triggered checkpoint 3231 | -7/Garrison | Triggered checkpoint 3596 | -7/Garrison | Installed Relay Interface Framework 3900 | -7/Garrison | Triggered checkpoint 3918 | -7/Garrison | Triggered checkpoint 3936 | -7/Garrison | Lost 3 allies 3950 | -7/Garrison | Triggered checkpoint 3963 | -7/Garrison | Discovered new exit (range 15) 4012 | -7/Garrison | Build established: Commander-Tank 4081 | -7/Garrison | Triggered checkpoint 4089 | -7/Garrison | Triggered checkpoint 4155 | -7/Garrison | Discovered new exit (range 13) 4493 | -7/Garrison | Triggered checkpoint 4701 | -7/Garrison | Discovered new exit (range 14) 4719 | -7/Garrison | Found embedded Infiltrators 4733 | -7/Garrison | Triggered checkpoint 5017 | -7/Garrison | Entered Factory 5017 | -6/Factory | Accompanied by 10 allies 5017 | -6/Factory | Evolved 2 slots: Utility x1, Weapon x1 5087 | -6/Factory | Garrison activated, responded to threat 5153 | -6/Factory | Lost 3 parts (1u2w) 5211 | -6/Factory | Identified exit to Garrison 5221 | -6/Factory | Entered Garrison 5221 | -6/Garrison | Accompanied by 6 allies 5241 | -6/Garrison | Triggered checkpoint 5298 | -6/Garrison | Expanded RIF knowledge: Program Shield 5352 | -6/Garrison | Assembled breached garrison interior 5390 | -6/Garrison | Spotted B-75 Beast 5481 | -6/Garrison | Lost 6 parts (2n2u2w) 5501 | -6/Garrison | Lost 6 allies 5505 | -6/Garrison | Discovered new exit (range 15) 5667 | -6/Garrison | Core integrity fell below 50% 5673 | -6/Garrison | Spotted B-86 Titan 6120 | -6/Garrison | Rewired B-75 Beast 6249 | -6/Garrison | Heavy support dispatched to Factory 6250 | -6/Garrison | Build established: Scavenger-Mutant 6304 | -6/Garrison | Discovered new exit (range 3) 6344 | -6/Garrison | Rescued a captive Derelict 6652 | -6/Garrison | Garrison Relay disabled 6739 | -6/Garrison | Lost 3 parts (1n1u1w) 6753 | -6/Garrison | Destroyed 18 combat bots 6994 | -6/Garrison | Build established: Mutant 7215 | -6/Garrison | Heavy support dispatched to Factory 7449 | -6/Garrison | Discovered new exit (range 10) 7541 | -6/Garrison | Build established: Scavenger-Gunner 7564 | -6/Garrison | Core integrity fell below 20% 7930 | -6/Garrison | Heavy support dispatched to Factory 8110 | -6/Garrison | Heavy support dispatched to Factory 8372 | -6/Garrison | Entered Factory 8396 | -6/Factory | Identified exit to Garrison 8396 | -6/Factory | Entered Garrison 8468 | -6/Garrison | Triggered checkpoint 8558 | -6/Garrison | Triggered checkpoint 8617 | -6/Garrison | Triggered checkpoint 8627 | -6/Garrison | Garrison Relay disabled 8660 | -6/Garrison | Destroyed by S-27 Virus with Autogun Last Messages --------------- Hvy. Mass Driver destroyed. Garrison Relay disabled. Relay Coupler [Grunt] tumbles out of relay unit. Relay Coupler [Duelist] tumbles out of relay unit. Relay Coupler [Demolisher] tumbles out of relay unit. Relay Coupler [NC] tumbles out of relay unit. Lgt. Angular Momentum Engine destroyed. Imp. VSS Leg destroyed. Hvy. Mass Driver destroyed. Imp. VSS Leg destroyed. Imp. Arc Projector destroyed. Acquired 13 matter. Acquired Lgt. Angular Momentum Engine. Adv. Cooling System destroyed. Imp. VSS Leg destroyed. Slug penetrates Wall. Railgun destroyed. Map ----- +----------------------------------------------------+ | ??????????????????????????????????????? | | ??????????????????????????????????????? | | ??????????????????????????????????????? | | #######???????????????????????????????? | | #???????????????????????????????? | | #???????????????????????????????? | | #### #???????????????????????????????? | | ???# #???????????????????????????????? | | ???# #???????????????????????????????? | | ???# #???????????????????????????????? | | ???# #???????????????????????????????? | | ???# #???????????????????????????????? | | ???# #???????????????????????????????? | | ???# #???????????????????????????????? | | ???# #???????????????????????????????? | | ???# #???????????????????????????????? | | ???# #???????????????????????????????? | | ???# #???????????????????????????????? | | ???# #???????????????????????????????? | | ???# #???????????????????????????????? | | ???# #???????????????????????????????? | | ???# #???????????????????????????????? | | ???# #???????#####???????????????????? | | ???# #???????# #???????????????????? | | ???# ######### ###########?????????? | | ???# @ #?????????? | | ???# ss #?????????? | | ???#######################[s#?????????? | | ?????????????????????????# =#?????????? | | ???????????????????????###%[#?????????? | | ???????????????????????# =%=#?????????? | | ???????????????????????# %#?????????? | | ???????????????????????# #?????????? | | ???????????????????????### #?????????? | | ?????????????????????????# #?????????? | | ?????????????????????????# #?????????? | | ???????????????????####??# #?????????? | | ???????????????????# % ### #?????????? | | ???????????????# ### #"#^ #?????????? | | ???????????????# ^ #?????????? | | ???????????????# ! ! #?????????? | | ???????????????#####!!!###"##?????????? | | ??????????????????# ""??# #??????????? | | ??????????????????#####??# #??????????? | | ?????????????????????????# #??????????? | | ?????????????????????????###??????????? | | ??????????????????????????????????????? | | ??????????????????????????????????????? | | ??????????????????????????????????????? | | ??????????????????????????????????????? | +----------------------------------------------------+ Best States ------------- Heat Dissipation 99 Energy Generation 19 Energy Capacity 900 Matter Stores 300 Matter Capacity 300 Sight Range 16 Terrain Scan Density 10 Additional Mass Support 12 Armor Coverage 1200 Resistance: KI 30 Evasion (%) 63 Targeting Accuracy 5 Target Analysis 7 Core Analysis 9 Recoil Reduction 4 Authchip Count 1 Item Schematics ----------------- None Robot Schematics ------------------ None Fabricated ------------ Nothing Repaired ---------- Nothing Studied --------- Hvy. Assault Rifle | -9/Materials | Hacked Alien Tech Used ----------------- None Achievements -------------- None Challenges ------------ None Game ------ Seed ScatterPulseReplicator Manual? 0 Play Time 01:02:14 Cumulative 234.0 hours Start 2026.02.06 @ 08:55:50 End 2026.02.07 @ 12:02:37 Sessions 1 Manual Loads 0 Difficulty Rogue Special Mode None Game No. 647 Rogue 646 Adventurer 1 Explorer 0 Win Type - Total 0 Types 0/0/0/0/0/0/0/0/0/0 Lore% 65 Gallery% 64 Achievement% 40 Wizard Run 0 Options --------- Layout 1 ASCII 0 Keyboard 0 Movement Mouse Keybinds 0 Fullscreen 1 Font 24/Smallcaps Map View 50x35 Zoom Use 0% Tactical HUD 0 Map Filters NONE Filters NONE Steam 1 RUN: 355ed153-0208-4d52-84f0-5501b043061e